bitfinex/quotes_SOLUSD_20240607
["timestamp","ask_amount","ask_price","bid_price","bid_amount"]
[1717787243269,21.5211,160.8,160.77,82.0]
[1717787243654,23.8221,160.8,160.77,82.0]
[1717787243857,98.64086687,179.24,160.81,2.3007]
[1717787243858,21.7154,160.89,160.81,2.3007]
[1717787244074,2.3,160.87,160.81,2.3007]
[1717787244274,2.3,160.87,160.78,9.2049]
[1717787244462,24.0154,160.87,160.81,2.3007]
[1717787244776,2.3002,160.86,160.77,4.6027]
[1717787244975,24.0155,160.87,160.81,2.3008]
[1717787245173,21.7154,160.91,160.82,6.9018]
[1717787245477,6.2993,160.91,160.87,2.2999]
[1717787245707,6.2993,160.91,160.82,9.2024]
[1717787245708,8.5987,160.91,160.82,9.2024]
[1717787245863,8.5987,160.91,160.85,2.3001]
[1717787246062,280.2802,160.95,160.88,2.2997]
[1717787246261,2.2985,160.97,160.87,11.4997]
[1717787246568,21.6142,160.99,160.91,2.2993]
[1717787246767,21.6142,160.99,160.96,82.0]
[1717787246982,2.2981,161.0,160.96,82.0]
[1717787247161,23.9127,160.97,160.96,82.0]
[1717787247361,21.6142,160.97,160.81,124.98563263]
[1717787247580,40.2642,160.97,160.78,4.6023]
[1717787247901,40.2642,160.97,160.82,2.3006]
[1717787247902,2.2997,160.89,160.82,2.3006]
[1717787248181,4.5986,160.92,160.8,2.3009]
[1717787248389,24.5986,160.92,160.8,2.3009]
[1717787248592,24.5986,160.92,160.77,4.6028]
[1717787248593,21.9838,160.88,160.78,4.6023]
[1717787248764,21.9838,160.88,160.82,2.3005]
[1717787249088,21.9838,160.88,160.79,4.6021]
[1717787249688,24.2836,160.88,160.82,2.3006]
[1717787249990,21.9838,160.88,160.83,2.3005]
[1717787250166,67.1097,160.91,160.81,4.6016]
[1717787250367,24.4091,160.91,160.85,82.0]
[1717787250891,22.1097,160.91,160.85,2.3001]
[1717787251205,21.6846,160.96,160.86,4.6]
[1717787251379,2.2988,160.95,160.89,2.2996]
[1717787251567,21.6846,160.96,160.88,2.2998]
[1717787251568,2.299,160.94,160.88,2.2998]
[1717787251762,2.2991,160.93,160.87,2.2999]
[1717787251974,21.6846,160.96,160.83,4.6008]
[1717787252481,2.2994,160.91,160.85,2.3002]
[1717787252679,26.2823,160.96,160.86,2.3001]
[1717787252680,2.2993,160.92,160.86,2.3001]
[1717787252880,4.5985,160.92,160.81,67.05157085]
[1717787253087,2.2999,160.88,160.82,2.3006]
[1717787253304,2.3,160.87,160.81,69.35227085]
[1717787253601,2.3,160.87,160.78,4.6023]
[1717787253602,2.2998,160.88,160.82,2.3006]
[1717787253894,21.7667,160.86,160.85,82.0]
[1717787254190,6.0378,160.86,160.85,82.0]
[1717787254396,21.7667,160.88,160.85,82.0]
[1717787254571,18.0287,160.88,160.85,82.0]
[1717787254777,6.4468,160.86,160.75,73.35759788]
[1717787254973,22.3003,160.85,160.8,2.3009]
[1717787255175,18.0193,160.88,160.78,120.0]
[1717787255378,18.0192,160.88,160.82,2.3006]
[1717787255581,42.1662,160.87,160.83,2.3005]
[1717787255788,6.4468,160.91,160.8,120.0]
[1717787256101,18.0188,160.92,160.86,2.3]
[1717787256273,11.0446,160.95,160.9,2.2995]
[1717787256274,24.4651,160.95,160.9,2.2995]
[1717787256792,22.1662,160.94,160.85,2.3001]
[1717787257312,22.1662,160.94,160.83,6.9016]
[1717787257596,22.1662,160.94,160.84,4.6007]
[1717787257797,20.0,160.93,160.91,82.0]
[1717787258484,2.2992,160.92,160.91,82.0]
[1717787258701,25.0968,160.93,160.91,82.0]
[1717787258878,22.7977,160.96,160.91,82.0]
[1717787259086,2.2996,160.9,160.82,124.6013]
[1717787259388,2.2998,160.88,160.82,2.3006]
[1717787259686,22.6206,160.91,160.84,2.3003]
[1717787259898,2.3,160.87,160.81,2.3007]
[1717787260086,2.3,160.87,160.78,4.6024]
[1717787260400,2.3,160.87,160.81,2.3007]
[1717787260610,2.3,160.87,160.8,13.8053]
[1717787260611,22.8868,160.87,160.8,13.8053]
[1717787260776,20.0,160.9,160.8,13.8053]
[1717787260777,20.0,160.9,160.81,9.2033]
[1717787260984,29.7848,160.92,160.78,136.1085]
[1717787261182,2.3,160.87,160.81,2.3007]
[1717787261373,21.4131,160.96,160.84,120.0]
[1717787261578,2.299,160.94,160.88,2.2998]
[1717787261893,2.2989,160.95,160.89,2.2996]
[1717787262101,2.299,160.94,160.88,2.2997]
[1717787262283,2.299,160.94,160.89,2.2997]
[1717787262605,24.7002,160.94,160.88,2.2998]
[1717787262821,22.4012,160.98,160.87,4.5999]
[1717787262985,22.4012,160.98,160.86,126.9002]
[1717787262986,24.6997,160.98,160.92,2.2991]
[1717787263495,2.2986,160.97,160.91,2.2993]
[1717787263701,2.2986,160.97,160.89,4.5993]
[1717787263702,2.2984,160.98,160.89,4.5993]
[1717787263883,2.2985,160.97,160.89,4.5993]
[1717787264073,2.2985,160.97,160.92,2.2991]
[1717787264278,2.2985,160.97,160.9,2.2995]
[1717787264279,2.2987,160.96,160.9,2.2995]
[1717787264895,25.5985,160.96,160.9,2.2995]
[1717787265098,2.2988,160.95,160.9,2.2995]
[1717787265306,2.299,160.94,160.84,22.5295]
[1717787265476,25.5987,160.95,160.89,2.2995]
[1717787265678,24.0127,160.94,160.89,2.2995]
[1717787266010,24.0127,160.94,160.86,4.6002]
[1717787266216,2.2995,160.91,160.82,6.902]
[1717787266400,41.7137,160.93,160.85,2.3001]
[1717787266696,2.2994,160.91,160.85,2.3001]
[1717787266898,22.703,160.9,160.79,120.0]
[1717787267097,29.1968,160.93,160.83,2.3005]
[1717787267098,2.2998,160.88,160.83,2.3005]
[1717787267308,2.3,160.87,160.82,2.3006]
[1717787267800,20.0,160.9,160.77,4.6028]
[1717787267801,23.9184,160.86,160.77,4.6028]
[1717787268006,22.8401,160.85,160.77,4.6028]
[1717787268199,22.8401,160.85,160.84,82.0]
[1717787268583,22.8401,160.87,160.84,82.0]
[1717787268786,25.1401,160.87,160.84,82.0]
[1717787268984,25.1401,160.87,160.82,2.3006]
[1717787268985,22.8401,160.87,160.79,6.9032]
[1717787269289,22.8401,160.87,160.8,4.6018]
[1717787269498,22.8401,160.87,160.83,2.3004]
[1717787269795,25.1401,160.87,160.82,2.3006]
[1717787270689,21.9997,160.86,160.82,2.3006]
[1717787271705,24.2998,160.86,160.81,2.3008]
[1717787271909,21.9997,160.86,160.85,82.0]
[1717787274005,24.2998,160.86,160.85,82.0]
[1717787274208,2.3005,160.84,160.75,78.58479788]
[1717787274594,2.3005,160.84,160.79,2.3011]
[1717787274788,23.9143,160.84,160.79,2.3011]
[1717787275110,21.6138,160.84,160.81,2.3008]
[1717787275510,21.6138,160.84,160.8,2.3009]
[1717787275687,21.6138,160.84,160.79,2.301]
[1717787275883,21.6138,160.84,160.8,2.3009]
[1717787276688,23.9142,160.84,160.79,2.301]
[1717787276902,21.6138,160.84,160.79,2.301]
[1717787277111,2.3002,160.86,160.8,2.3009]
[1717787277298,24.0836,160.86,160.83,82.0]
[1717787277897,21.7834,160.86,160.82,2.3006]
[1717787278709,24.0835,160.86,160.81,2.3008]
[1717787279708,24.0836,160.86,160.8,2.3009]
[1717787279891,24.0836,160.86,160.81,2.3008]
[1717787280093,2.3003,160.85,160.8,2.3009]
[1717787280294,8.6874,160.84,160.79,2.301]
[1717787280514,8.6874,160.84,160.78,2.3012]
[1717787280810,8.6876,160.83,160.78,2.3012]
[1717787281009,22.0075,160.83,160.82,82.0]
[1717787281616,24.308,160.83,160.82,82.0]
[1717787281830,22.0075,160.83,160.82,82.0]
[1717787283419,2.3003,160.85,160.82,82.0]
[1717787283718,23.0396,160.9,160.78,120.0]
[1717787283909,25.3392,160.9,160.84,2.3003]
[1717787284102,2.2997,160.89,160.84,2.3003]
[1717787284302,25.3393,160.89,160.84,2.3003]
[1717787284523,23.0396,160.89,160.85,2.3002]
[1717787284708,2.2993,160.92,160.84,4.6007]
[1717787285025,16.4372,160.94,160.87,2.2999]
[1717787285202,25.4521,160.92,160.87,2.2999]
[1717787285403,2.2994,160.91,160.86,2.3]
[1717787285798,2.2995,160.9,160.85,2.3002]
[1717787286016,2.2998,160.89,160.81,4.6016]
[1717787286230,2.2995,160.91,160.85,2.3002]
[1717787286541,2.2996,160.9,160.85,2.3002]
[1717787286711,2.2994,160.91,160.88,82.0]
[1717787287129,25.2533,160.91,160.88,82.0]
[1717787288023,25.2533,160.91,160.82,11.5032]
[1717787288024,22.9539,160.91,160.87,2.2999]
[1717787288706,22.9539,160.91,160.82,20.7058]
[1717787288707,2.2991,160.93,160.88,2.2997]
[1717787289118,24.7809,160.95,160.89,2.2996]
[1717787289325,2.299,160.94,160.89,2.2996]
[1717787289903,2.2986,160.97,160.86,126.9003]
[1717787290121,2.2987,160.96,160.9,2.2994]
[1717787290325,2.2989,160.95,160.89,2.2996]
[1717787290629,2.2989,160.95,160.9,2.2995]
[1717787290827,2.2991,160.94,160.86,124.6002]
[1717787291026,2.299,160.94,160.93,82.0]
[1717787292329,24.7685,160.94,160.93,82.0]
[1717787292508,4.5983,160.93,160.84,2.3003]
[1717787292824,22.4695,160.92,160.83,4.601]
[1717787292997,4.5989,160.91,160.8,126.4812]
[1717787293196,2.2998,160.89,160.83,2.3004]
[1717787293400,2.2997,160.89,160.83,2.3004]
[1717787293940,22.4991,160.88,160.74,10.6731]
[1717787294136,22.4991,160.88,160.7,25.99]
[1717787294137,6.9006,160.86,160.76,2.3015]
[1717787294337,2.3,160.87,160.81,2.3007]
[1717787294553,20.0,160.87,160.8,2.3009]
[1717787294860,2.3001,160.86,160.8,2.3009]
[1717787295146,2.3004,160.84,160.76,4.6031]
[1717787295449,8.6705,160.85,160.82,82.0]
[1717787295826,24.4307,160.85,160.82,82.0]
[1717787296330,22.1304,160.85,160.82,82.0]
[1717787296537,22.3,160.87,160.82,2.3007]
[1717787296740,2.3,160.87,160.81,2.3007]
[1717787297045,2.3003,160.85,160.8,2.3009]
[1717787297225,24.1848,160.85,160.8,2.3009]
[1717787297427,2.3004,160.84,160.79,2.301]
[1717787298331,24.1848,160.85,160.8,2.3009]
[1717787298829,20.0,160.88,160.78,120.0]
[1717787299009,20.0,160.88,160.85,2.3002]
[1717787299209,8.7487,160.89,160.81,4.6014]
[1717787299415,16.0934,160.9,160.82,4.6013]
[1717787299726,16.0934,160.9,160.87,82.0]
[1717787300260,2.2997,160.89,160.87,82.0]
[1717787300616,16.0934,160.9,160.87,82.0]
[1717787300816,2.2997,160.89,160.87,82.0]
[1717787301337,16.0934,160.9,160.87,82.0]
[1717787301338,18.393,160.9,160.87,82.0]
[1717787301514,18.393,160.9,160.85,2.3002]
[1717787301935,10.8741,160.93,160.82,4.6011]
[1717787302135,2.2996,160.9,160.85,2.3002]
[1717787302435,2.2996,160.9,160.88,82.0]
[1717787302844,8.4803,160.89,160.88,82.0]
[1717787303017,8.4803,160.89,160.8,11.5047]
[1717787303223,8.4803,160.89,160.84,2.3003]
[1717787303441,2.2998,160.88,160.84,2.3003]
[1717787303949,2.2998,160.88,160.83,2.3005]
[1717787304127,27.5693,160.9,160.81,2.3007]
[1717787304327,27.5693,160.9,160.8,2.3009]
[1717787304328,21.9363,160.88,160.8,2.3009]
[1717787304538,74.2004,160.87,160.75,71.67989788]
[1717787304849,2.3006,160.83,160.75,71.67989788]
[1717787305025,2.3006,160.83,160.79,2.3011]
[1717787305222,21.9363,160.84,160.79,2.3011]
[1717787305535,2.3005,160.83,160.79,2.3011]
[1717787305724,24.2367,160.84,160.79,2.3011]
[1717787305924,24.2367,160.84,160.8,82.0]
[1717787306252,2.3005,160.83,160.8,82.0]
[1717787306922,2.3008,160.81,160.8,82.0]
[1717787307121,21.9363,160.84,160.8,82.0]
[1717787307433,6.9012,160.84,160.75,67.07659788]
[1717787307634,21.9363,160.79,160.75,67.07659788]
[1717787307846,2.3015,160.77,160.75,67.07659788]
[1717787308144,21.9363,160.79,160.73,2.3019]
[1717787308345,2.3013,160.78,160.73,2.3019]
[1717787308646,2.3014,160.77,160.73,2.3019]
[1717787309055,2.3013,160.78,160.74,2.3018]
[1717787309220,21.9363,160.79,160.75,2.3016]
[1717787310758,2.3012,160.78,160.76,82.0]
[1717787310957,24.2374,160.79,160.76,82.0]
[1717787311164,2.301,160.8,160.76,82.0]
[1717787311333,21.8527,160.83,160.73,120.0]
[1717787311521,21.8527,160.83,160.8,2.3009]
[1717787311726,21.8527,160.87,160.78,4.6023]
[1717787311957,8.5734,160.86,160.81,2.3007]
[1717787312121,6.2733,160.86,160.82,2.3007]
[1717787312327,6.2733,160.86,160.79,4.6021]
[1717787312328,2.3001,160.86,160.79,4.6021]
[1717787312631,6.2896,160.9,160.8,120.0]
[1717787312951,6.2896,160.9,160.8,145.99]
[1717787313150,6.2896,160.9,160.86,2.3]
[1717787313353,2.2993,160.92,160.86,2.3]
[1717787313552,2.2992,160.92,160.86,2.3]
[1717787313728,17.6548,160.93,160.87,2.2998]
[1717787313930,2.2992,160.92,160.86,2.3001]
[1717787314142,2.2994,160.91,160.85,2.3002]
[1717787314341,2.2996,160.9,160.87,82.0]
[1717787314551,21.6453,160.88,160.87,82.0]
[1717787314741,21.6453,160.88,160.77,6.2824]
[1717787314742,2.3002,160.85,160.77,6.2824]
[1717787314943,2.3001,160.86,160.8,2.3009]
[1717787315144,2.3002,160.85,160.79,2.3011]
[1717787315344,2.3002,160.85,160.75,9.2064]
[1717787315345,21.6453,160.88,160.77,2.3013]
[1717787315529,69.6,160.87,160.77,2.3013]
[1717787315729,69.6,160.87,160.73,10.8861]
[1717787315730,2.3003,160.85,160.79,2.3011]
[1717787315945,2.3001,160.86,160.8,2.3009]
[1717787316131,2.3001,160.86,160.75,11.5083]
[1717787316132,20.0,160.87,160.76,4.6029]
[1717787316342,22.3,160.87,160.81,2.3008]
[1717787317053,20.0,160.87,160.83,2.3005]
[1717787317240,22.2998,160.89,160.83,2.3005]
[1717787317439,6.169,160.89,160.78,120.0]
[1717787317627,6.169,160.89,160.84,2.3003]
[1717787317833,6.169,160.89,160.87,82.0]
[1717787318033,8.4687,160.89,160.87,82.0]
[1717787318648,24.5432,160.89,160.87,82.0]
[1717787319261,2.2998,160.88,160.87,82.0]
[1717787319567,2.3003,160.85,160.76,4.6031]
[1717787319738,66.2182,160.88,160.76,4.6031]
[1717787319739,20.0,160.87,160.8,2.3009]
[1717787319938,2.3001,160.86,160.77,120.0]
[1717787320148,2.3001,160.86,160.8,2.3009]
[1717787320464,2.3002,160.85,160.8,2.3009]
[1717787320760,22.4868,160.86,160.81,2.3008]
[1717787321157,22.3,160.87,160.78,4.6025]
[1717787321158,22.1987,160.85,160.78,2.3012]
[1717787321358,2.3004,160.84,160.78,2.3012]
[1717787321565,18.2472,160.85,160.74,16.1122]
[1717787321855,18.2472,160.85,160.76,4.603]
[1717787322069,2.3004,160.84,160.79,2.301]
[1717787322238,6.2518,160.83,160.79,2.301]
[1717787322559,24.4995,160.82,160.76,2.3014]
[1717787322781,24.4995,160.82,160.77,2.3014]
[1717787322943,24.4995,160.82,160.77,2.0318]
[1717787323149,22.1987,160.82,160.78,2.3012]
[1717787323562,22.1987,160.82,160.79,2.3011]
[1717787323861,6.5745,160.81,160.76,2.3014]
[1717787324064,21.5943,160.81,160.77,2.3014]
[1717787324638,6.5745,160.8,160.76,2.3015]
[1717787324940,21.5943,160.78,160.7,11.5116]
[1717787325169,15.0198,160.78,160.69,67.10164359]
[1717787325337,21.5943,160.76,160.72,2.302]
[1717787325543,21.5943,160.76,160.73,82.0]
[1717787326254,21.5943,160.76,160.73,84.3019]
[1717787327657,21.5943,160.76,160.73,82.0]
[1717787327973,21.5943,160.76,160.73,84.3019]
[1717787328149,21.5943,160.76,160.74,2.3018]
[1717787328744,21.8119,160.78,160.74,2.3018]
[1717787328949,21.8119,160.77,160.73,84.3019]
[1717787329273,21.8119,160.77,160.73,2.3019]
[1717787329452,21.8119,160.77,160.74,2.3018]
[1717787329759,2.3013,160.78,160.7,11.5116]
[1717787329972,21.7044,160.76,160.73,2.3019]
[1717787331571,23.6171,160.78,160.73,2.3019]
[1717787331776,21.3158,160.78,160.7,4.6046]
[1717787332151,23.6171,160.78,160.73,84.3018]
[1717787332451,21.6129,160.77,160.73,84.3018]
[1717787332670,23.9143,160.77,160.73,84.3018]
[1717787333178,21.6129,160.77,160.74,2.3018]
[1717787333353,6.0847,160.77,160.74,2.3018]
[1717787333663,6.0847,160.77,160.73,84.3019]
[1717787333864,6.0847,160.77,160.74,2.3018]
[1717787334670,2.3014,160.77,160.73,82.0]
[1717787334849,8.9643,160.77,160.73,82.0]
[1717787335051,24.9052,160.77,160.73,82.0]
[1717787335259,22.6038,160.77,160.73,84.3019]
[1717787335666,24.9052,160.77,160.73,82.0]
[1717787336274,24.9052,160.77,160.73,84.3019]
[1717787336472,24.9052,160.77,160.73,82.0]
[1717787336773,22.6038,160.77,160.73,84.3019]
[1717787336983,24.3214,160.79,160.74,2.3018]
[1717787337156,4.6015,160.82,160.73,84.3019]
[1717787337157,22.0202,160.77,160.73,84.3019]
[1717787337466,2.3013,160.78,160.73,84.3019]
[1717787337467,22.3013,160.78,160.74,2.3017]
[1717787337664,22.0202,160.8,160.74,2.3017]
[1717787337873,2.3012,160.78,160.73,84.3019]
[1717787338080,24.3214,160.78,160.73,84.3019]
[1717787339553,24.3214,160.78,160.74,2.3018]
[1717787339759,24.3214,160.78,160.73,84.3019]
[1717787340282,24.3214,160.78,160.74,2.3018]
[1717787340591,23.8832,160.77,160.72,2.3021]
[1717787340876,21.5818,160.77,160.73,2.3019]
[1717787341361,23.8832,160.77,160.72,2.302]
[1717787341884,21.5818,160.77,160.73,2.3019]
[1717787342185,23.8832,160.77,160.72,2.302]
[1717787342385,23.8832,160.77,160.73,2.3019]
[1717787342562,23.8832,160.77,160.72,2.302]
[1717787342762,20.0,160.79,160.75,2.3016]
[1717787342967,2.3012,160.79,160.74,2.3017]
[1717787343287,2.301,160.8,160.76,2.3014]
[1717787343984,24.4871,160.81,160.76,2.3014]
[1717787344381,22.1862,160.81,160.74,82.0]
[1717787344562,26.788,160.81,160.74,82.0]
[1717787344757,2.3013,160.78,160.73,2.3019]
[1717787345314,31.6554,160.85,160.78,2.3011]
[1717787345476,2.3006,160.83,160.75,11.5081]
[1717787345681,2.3006,160.83,160.79,2.3011]
[1717787346057,2.3006,160.83,160.75,11.5081]
[1717787346058,2.3004,160.84,160.8,2.3009]
[1717787346263,22.454,160.85,160.81,2.3007]
[1717787346493,22.454,160.85,160.8,2.3009]
[1717787346494,8.347,160.85,160.8,2.3009]
[1717787346660,22.6294,160.86,160.73,9.2076]
[1717787346861,2.3007,160.82,160.78,2.3011]
[1717787347082,22.6294,160.83,160.78,2.3011]
[1717787347083,24.93,160.83,160.78,2.3011]
[1717787347461,24.93,160.83,160.72,4.6041]
[1717787347462,22.6294,160.83,160.72,4.6041]
[1717787347662,21.7849,160.83,160.73,2.3018]
[1717787347863,4.6022,160.79,160.72,82.0]
[1717787348082,2.3016,160.76,160.72,82.0]
[1717787348285,21.7849,160.75,160.72,2.3021]
[1717787348471,21.7849,160.75,160.69,67.10164359]
[1717787348472,45.0,160.74,160.69,67.10164359]
[1717787348670,21.7849,160.72,160.69,67.10164359]
[1717787348867,2.3024,160.71,160.69,67.10164359]
[1717787349079,2.3016,160.76,160.71,2.3022]
[1717787349397,21.7849,160.77,160.69,67.10164359]
[1717787349590,2.3018,160.75,160.7,2.3024]
[1717787349791,20.0,160.76,160.71,2.3021]
[1717787349985,20.0,160.76,160.69,71.70674359]
[1717787350172,2.3017,160.75,160.7,2.3023]
[1717787350680,2.3018,160.74,160.69,69.40414359]
[1717787350982,2.3017,160.75,160.7,2.3024]
[1717787351187,2.3018,160.74,160.69,69.40414359]
[1717787351409,2.3017,160.75,160.69,151.40414359]
[1717787351600,2.3018,160.74,160.69,151.40414359]
[1717787351900,2.3024,160.7,160.69,67.10164359]
[1717787352077,21.2474,160.72,160.65,0.8377]
[1717787352277,2.3026,160.69,160.65,0.8377]
[1717787352484,2.3027,160.68,160.65,0.8377]
[1717787353399,6.455,160.7,160.65,0.8377]
[1717787353592,2.3028,160.68,160.65,0.8377]
[1717787354190,2.3021,160.72,160.67,2.3028]
[1717787354392,2.3023,160.71,160.66,2.3029]
[1717787354585,6.3765,160.73,160.65,0.8377]
[1717787354800,2.303,160.66,160.65,0.8377]
[1717787355182,2.3029,160.67,160.65,0.8377]
[1717787355895,2.3028,160.67,160.65,0.8377]
[1717787356484,2.303,160.66,160.65,0.8377]
[1717787357124,8.4762,160.66,160.65,0.8377]
[1717787357406,90.3571,160.66,160.65,0.8377]
[1717787357605,110.3571,160.66,160.65,0.8377]
[1717787358007,110.3571,160.66,160.53,6.5565]
[1717787358008,2.3038,160.61,160.55,2.3045]
[1717787358205,2.3038,160.61,160.53,6.5565]
[1717787358206,2.3038,160.61,160.56,2.3044]
[1717787358519,2.3038,160.61,160.53,6.5565]
[1717787358893,2.3035,160.62,160.57,2.3042]
[1717787359204,20.0,160.63,160.55,16.1318]
[1717787359407,2.3034,160.63,160.58,2.304]
[1717787359607,2.3036,160.62,160.54,4.6093]
[1717787359810,2.3034,160.63,160.57,2.3042]
[1717787360191,2.3036,160.62,160.56,2.3043]
[1717787360386,20.0,160.63,160.56,2.3043]
[1717787360387,22.3034,160.63,160.56,2.3043]
[1717787360589,2.3036,160.62,160.56,2.3043]
[1717787360794,22.3034,160.63,160.56,2.3043]
[1717787361200,22.3034,160.63,160.57,2.3042]
[1717787361393,20.0,160.63,160.57,2.3042]
[1717787362108,2.3036,160.62,160.56,2.3044]
[1717787362295,20.0,160.65,160.56,2.3044]
[1717787362615,45.0,160.64,160.56,2.3044]
[1717787362791,45.0,160.64,160.57,2.3042]
[1717787363117,22.3034,160.63,160.57,2.3042]
[1717787363317,2.3034,160.63,160.57,2.3042]
[1717787363696,47.3034,160.63,160.57,2.3042]
[1717787363901,2.3036,160.62,160.55,84.3044]
[1717787364112,22.3036,160.62,160.56,2.3043]
[1717787364629,20.0,160.62,160.57,2.3042]
[1717787365705,20.0,160.62,160.58,2.3041]
[1717787366006,6.1991,160.7,160.61,4.6073]
[1717787366207,6.1991,160.7,160.65,2.303]
[1717787366426,794.86,160.83,160.56,120.0]
[1717787366427,22.548,160.69,160.61,4.6074]
[1717787366626,22.548,160.69,160.63,2.3033]
[1717787366815,2.3023,160.71,160.64,2.3031]
[1717787367011,22.548,160.73,160.61,4.6074]
[1717787367322,2.3024,160.7,160.64,2.3031]
[1717787367726,2.3024,160.7,160.61,4.6074]
[1717787367727,2.3023,160.71,160.65,2.3031]
[1717787367925,22.548,160.73,160.65,2.3031]
[1717787368104,22.548,160.73,160.66,2.3028]
[1717787368306,2.3023,160.71,160.65,2.3031]
[1717787368515,2.3023,160.71,160.62,4.6069]
[1717787368516,4.6046,160.71,160.61,8.3259]
[1717787368746,2.3029,160.67,160.61,8.3259]
[1717787369033,2.3028,160.67,160.62,82.0]
[1717787369229,2.303,160.66,160.6,2.3038]
[1717787369427,2.3027,160.68,160.62,2.3035]
[1717787370234,2.3027,160.68,160.58,4.6082]
[1717787370235,2.3028,160.67,160.61,2.3036]
[1717787370537,20.0,160.68,160.61,2.3036]
[1717787370916,20.0,160.68,160.6,2.3038]
[1717787371115,2.3031,160.66,160.6,2.3038]
[1717787371731,22.3029,160.67,160.61,2.3036]
[1717787371923,2.3029,160.67,160.61,2.3036]
[1717787372119,20.0,160.69,160.57,6.5418]
[1717787372324,20.0,160.68,160.63,2.3032]
[1717787372527,2.3027,160.68,160.62,84.3035]
[1717787372739,2.3025,160.69,160.6,4.6075]
[1717787373048,2.3027,160.68,160.62,2.3035]
[1717787373222,2.3028,160.67,160.62,2.3035]
[1717787373417,2.3027,160.68,160.62,2.3035]
[1717787373730,2.3028,160.68,160.62,2.3035]
[1717787373936,2.3032,160.65,160.59,2.3039]
[1717787374125,4.6055,160.68,160.59,2.3039]
[1717787374444,2.303,160.66,160.61,2.3037]
[1717787374622,47.3029,160.67,160.61,2.3037]
[1717787374826,20.0,160.66,160.61,2.3037]
[1717787375035,22.303,160.66,160.61,2.3037]
[1717787375379,22.303,160.66,160.6,2.3038]
[1717787375523,2.303,160.66,160.61,2.3036]
[1717787375718,2.3029,160.67,160.61,84.3036]
[1717787376037,20.0,160.69,160.61,84.3036]
[1717787376038,2.303,160.66,160.61,84.3036]
[1717787376346,2.303,160.66,160.61,82.0]
[1717787378245,2.3031,160.65,160.61,82.0]
[1717787379183,2.303,160.66,160.61,84.3037]
[1717787379346,2.303,160.66,160.61,82.0]
[1717787379546,2.3031,160.65,160.61,82.0]
[1717787379770,31.5131,160.69,160.61,82.0]
[1717787379957,2.303,160.66,160.61,82.0]
[1717787380269,4.6063,160.65,160.57,2.3042]
[1717787380567,4.6063,160.65,160.56,2.3043]
[1717787380754,45.0,160.64,160.57,2.3042]
[1717787380955,2.3036,160.62,160.57,2.3042]
[1717787381370,2.3037,160.61,160.56,2.3044]
[1717787382392,2.3037,160.61,160.6,10.0]
[1717787383655,23.9637,160.61,160.6,10.0]
[1717787383858,88.9637,160.61,160.6,10.0]
[1717787384145,20.0,160.61,160.6,10.0]
[1717787384351,22.3037,160.61,160.6,10.0]
[1717787384653,64.5762,160.61,160.6,10.0]
[1717787385778,128.2262,160.61,160.6,10.0]
[1717787386455,2.3046,160.55,160.49,85.1430873]
[1717787386852,2.3046,160.55,160.49,3.1430873]
[1717787387058,2.3048,160.54,160.49,0.8377873]